bitfinex/quotes_SOLUSD_20220129
["timestamp","ask_amount","ask_price","bid_price","bid_amount"]
[1643476088174,40.44254164,95.319,95.239,2.39396392]
[1643476088373,12.65,95.32,95.239,2.39396392]
[1643476088571,12.65,95.32,95.249,6.0]
[1643476088771,12.65,95.32,95.25,0.25]
[1643476089071,28.404,95.32,95.25,0.25]
[1643476089276,34.04146801,95.319,95.25,0.25]
[1643476089472,28.404,95.32,95.25,0.25]
[1643476089675,28.404,95.32,95.25,2.64396392]
[1643476089676,12.65,95.32,95.25,2.64396392]
[1643476090072,12.65,95.32,95.26,6.0]
[1643476090272,12.65,95.35,95.261,0.25]
[1643476090473,12.65,95.35,95.261,108.24652879]
[1643476090474,34.09977838,95.349,95.261,108.24652879]
[1643476090879,12.65,95.35,95.271,6.0]
[1643476091077,12.65,95.35,95.272,111.6]
[1643476091279,12.65,95.35,95.272,114.24652879]
[1643476091476,12.65,95.35,95.273,2.39652879]
[1643476091877,12.65,95.35,95.283,6.0]
[1643476092278,12.65,95.35,95.284,0.25]
[1643476092678,51.66651627,95.35,95.284,0.25]
[1643476093277,12.65,95.35,95.284,0.25]
[1643476093880,12.65,95.37,95.285,2.39652879]
[1643476094080,12.65,95.37,95.295,6.0]
[1643476094278,38.40766506,95.369,95.296,0.25]
[1643476094480,12.65,95.37,95.296,0.25]
[1643476094681,12.65,95.37,95.296,2.64652879]
[1643476095084,12.65,95.37,95.306,6.0]
[1643476095382,12.65,95.37,95.307,0.25]
[1643476096584,12.65,95.37,95.281,0.25]
[1643476096787,39.60549014,95.369,95.281,0.25]
[1643476097084,39.60549014,95.369,95.29,6.0]
[1643476097285,39.60549014,95.369,95.291,0.25]
[1643476097486,39.60549014,95.369,95.292,6.0]
[1643476097685,39.60549014,95.369,95.28,6.0]
[1643476097885,39.60549014,95.369,95.258,2.39004483]
[1643476098085,2.95669142,95.368,95.273,6.0]
[1643476098285,12.65,95.37,95.274,105.6]
[1643476098488,0.50687388,95.38,95.274,105.6]
[1643476098689,0.50687388,95.38,95.285,105.6]
[1643476098885,0.50687388,95.38,95.286,0.25]
[1643476099087,0.50687388,95.38,95.295,6.0]
[1643476099308,0.50687388,95.38,95.296,105.85]
[1643476099508,0.50687388,95.38,95.306,6.0]
[1643476099910,0.50687388,95.38,95.307,0.25]
[1643476100111,0.50687388,95.38,95.307,8.63517889]
[1643476100309,0.50687388,95.38,95.308,2.38517889]
[1643476100508,0.50687388,95.38,95.318,6.0]
[1643476100909,0.50687388,95.38,95.319,2.63517889]
[1643476101310,0.50687388,95.38,95.319,2.38517889]
[1643476101510,0.50687388,95.38,95.318,6.0]
[1643476101710,0.50687388,95.38,95.306,6.0]
[1643476101912,0.50687388,95.38,95.314,6.0]
[1643476102513,0.50687388,95.38,95.317,6.0]
[1643476102712,0.50687388,95.38,95.315,2.63517889]
[1643476102914,0.50687388,95.38,95.315,0.25]
[1643476103114,33.90490888,95.379,95.314,6.0]
[1643476103313,33.90490888,95.379,95.287,25.87352723]
[1643476103314,33.90490888,95.379,95.287,24.4554]
[1643476103514,33.90490888,95.379,95.309,6.0]
[1643476104216,33.90490888,95.379,95.297,6.0]
[1643476104416,0.50687388,95.38,95.31,2.38517889]
[1643476104616,0.50687388,95.38,95.32,6.0]
[1643476104915,0.50687388,95.38,95.321,0.25]
[1643476105122,0.50687388,95.38,95.321,2.63517889]
[1643476105315,0.50687388,95.38,95.322,2.38517889]
[1643476105516,0.50687388,95.38,95.332,111.6]
[1643476105919,0.50687388,95.38,95.333,0.25]
[1643476106325,0.50687388,95.38,95.333,2.62976852]
[1643476106520,0.50687388,95.38,95.343,6.0]
[1643476106721,0.50687388,95.38,95.344,105.6]
[1643476106923,0.50687388,95.38,95.344,108.22976852]
[1643476107119,0.50687388,95.38,95.354,6.0]
[1643476107320,0.50687388,95.38,95.355,0.25]
[1643476107519,0.50687388,95.38,95.355,6.25]
[1643476108923,0.50687388,95.38,95.355,8.62976852]
[1643476109120,0.50687388,95.38,95.355,2.62976852]
[1643476109320,0.50687388,95.38,95.366,105.6]
[1643476109521,0.50687388,95.38,95.376,6.0]
[1643476109921,0.50687388,95.38,95.377,0.25]
[1643476110121,0.50687388,95.38,95.377,6.25]
[1643476110523,0.50687388,95.38,95.377,6.0]
[1643476110920,0.50687388,95.38,95.355,2.37976852]
[1643476110921,0.50687388,95.38,95.356,6.0]
[1643476111920,0.50687388,95.38,95.357,0.25]
[1643476112120,0.50687388,95.38,95.362,6.0]
[1643476112320,0.50687388,95.38,95.363,0.25]
[1643476112522,0.50687388,95.38,95.366,6.0]
[1643476112924,0.50687388,95.38,95.367,0.25]
[1643476114130,0.50687388,95.38,95.367,105.6]
[1643476114327,0.50687388,95.38,95.368,0.25]
[1643476115331,0.50687388,95.38,95.377,6.0]
[1643476115933,0.50687388,95.38,95.367,105.6]
[1643476117030,0.50687388,95.38,95.345,2.37976852]
[1643476117433,0.50687388,95.38,95.356,105.6]
[1643476117633,0.50687388,95.38,95.366,6.0]
[1643476117832,0.00687388,95.38,95.367,105.85]
[1643476118060,0.00687388,95.38,95.378,105.6]
[1643476118532,0.00687388,95.38,95.379,0.25]
[1643476120032,0.00687388,95.38,95.37,0.32155925]
[1643476121340,0.00687388,95.38,95.371,2.37343221]
[1643476121735,0.00687388,95.38,95.372,0.25]
[1643476122934,0.00687388,95.38,95.37,0.57155925]
[1643476123135,44.91463833,95.435,95.37,0.32155925]
[1643476123534,22.9868,95.458,95.37,0.32155925]
[1643476123735,12.65,95.45,95.37,0.32155925]
[1643476123934,12.65,95.43,95.37,0.32155925]
[1643476124535,41.55885398,95.409,95.37,0.32155925]
[1643476125136,12.65,95.43,95.37,0.32155925]
[1643476126163,37.75306537,95.424,95.37,0.32155925]
[1643476126362,38.77607384,95.409,95.37,0.32155925]
[1643476128768,12.65,95.43,95.37,0.32155925]
[1643476128966,1.44778738,95.447,95.37,0.32155925]
[1643476129166,1.44778738,95.449,95.37,0.32155925]
[1643476129370,1.44778738,95.45,95.37,0.32155925]
[1643476129568,1.44778738,95.449,95.37,0.32155925]
[1643476129767,40.39945985,95.409,95.37,0.32155925]
[1643476129968,1.44778738,95.449,95.37,0.32155925]
[1643476130368,1.44778738,95.45,95.37,0.32155925]
[1643476130571,1.44778738,95.449,95.37,0.32155925]
[1643476130769,15.732,95.45,95.37,0.32155925]
[1643476130770,1.44778738,95.445,95.37,0.32155925]
[1643476131068,32.80047671,95.402,95.37,0.32155925]
[1643476136475,1.44778738,95.424,95.37,0.32155925]
[1643476136674,1.44778738,95.451,95.37,0.32155925]
[1643476137074,1.44778738,95.455,95.37,0.32155925]
[1643476137276,1.44778738,95.455,95.371,2.37343221]
[1643476137479,1.44778738,95.457,95.377,6.0]
[1643476137676,42.70749188,95.446,95.381,6.0]
[1643476137877,42.70749188,95.446,95.382,0.25]
[1643476138477,45.07222778,95.43,95.382,0.25]
[1643476139080,45.07222778,95.43,95.38,6.0]
[1643476139282,38.42689287,95.415,95.36,1.41812723]
[1643476139488,38.42689287,95.415,95.345,1.41812723]
[1643476139879,34.90634173,95.415,95.337,1.41812723]
[1643476140087,2.95669142,95.402,95.337,1.41812723]
[1643476140285,12.65,95.41,95.337,1.41812723]
[1643476140583,12.65,95.41,95.334,1.41812723]
[1643476140785,12.65,95.41,95.335,1.41812723]
[1643476141183,12.65,95.41,95.336,0.25]
[1643476141384,12.65,95.41,95.344,1.41812723]
[1643476141682,34.90634173,95.415,95.354,6.0]
[1643476141887,34.90634173,95.415,95.355,0.25]
[1643476142283,34.90634173,95.415,95.346,0.25]
[1643476142484,12.65,95.41,95.34,1.41812723]
[1643476142783,12.65,95.41,95.332,25.34092723]
[1643476142983,46.2851082,95.399,95.331,1.41812723]
[1643476143282,46.2851082,95.399,95.33,107.01812723]
[1643476143584,46.2851082,95.399,95.34,6.0]
[1643476144587,46.2851082,95.399,95.341,111.6]
[1643476144785,46.2851082,95.399,95.342,0.25]
[1643476145885,46.2851082,95.399,95.332,0.25]
[1643476146288,46.2851082,95.399,95.33,0.25]
[1643476146490,46.2851082,95.399,95.339,6.0]
[1643476146687,46.2851082,95.399,95.338,6.0]
[1643476146887,46.2851082,95.399,95.339,105.85]
[1643476147888,65.0,95.398,95.314,112.9]
[1643476148087,46.2851082,95.399,95.269,27.38619996]
[1643476148088,6.0,95.388,95.274,117.25271148]
[1643476148287,6.0,95.388,95.283,2.88532055]
[1643476148492,48.5966,95.387,95.274,112.9]
[1643476148687,48.5966,95.387,95.275,105.6]
[1643476148887,48.5966,95.387,95.276,4.83411138]
[1643476150088,48.5966,95.387,95.275,105.6]
[1643476150288,48.5966,95.387,95.276,23.8143]
[1643476150489,48.5966,95.387,95.277,105.6]
[1643476150694,48.5966,95.387,95.286,6.0]
[1643476150889,48.5966,95.387,95.287,6.25]
[1643476151089,48.5966,95.387,95.288,105.6]
[1643476151292,48.5966,95.387,95.289,0.25]
[1643476151690,48.5966,95.387,95.298,6.0]
[1643476151893,48.5966,95.387,95.299,0.25]
[1643476152089,48.5966,95.387,95.289,0.25]
[1643476153192,2.95669142,95.386,95.275,0.25]
[1643476153489,48.5966,95.387,95.275,105.85]
[1643476153890,41.62267749,95.379,95.275,105.85]
[1643476154491,6.0,95.369,95.275,105.85]
[1643476154688,6.0,95.369,95.257,22.7042]
[1643476154891,38.61823715,95.359,95.257,22.7042]
[1643476155094,38.61823715,95.359,95.248,23.8009]
[1643476155493,2.95669142,95.358,95.248,23.8009]
[1643476155691,2.95669142,95.358,95.232,105.6]
[1643476157191,15.749,95.35,95.232,105.6]
[1643476157390,12.65,95.34,95.242,6.0]
[1643476157696,41.17337417,95.339,95.242,6.0]
[1643476158001,12.65,95.34,95.243,105.6]
[1643476158190,12.65,95.34,95.243,107.98186741]
[1643476158391,12.65,95.34,95.253,6.0]
[1643476158793,12.65,95.34,95.254,0.25]
[1643476160192,12.65,95.34,95.254,105.85]
[1643476160592,12.65,95.34,95.264,6.0]
[1643476160793,12.65,95.34,95.265,0.25]
[1643476161292,12.65,95.34,95.243,6.0]
[1643476161896,12.65,95.34,95.244,105.6]
[1643476162096,12.65,95.34,95.255,105.6]
[1643476162297,12.65,95.34,95.256,0.25]
[1643476162495,12.65,95.34,95.265,6.0]
[1643476162693,12.65,95.34,95.244,0.25]
[1643476162896,12.65,95.34,95.243,6.0]
[1643476163095,12.65,95.34,95.253,6.0]
[1643476163295,12.65,95.34,95.254,0.25]
[1643476163498,12.65,95.34,95.254,105.85]
[1643476163895,12.65,95.34,95.264,6.0]
[1643476164098,12.65,95.34,95.265,105.6]
[1643476164298,12.65,95.34,95.265,105.85]
[1643476164499,12.65,95.34,95.275,6.0]
[1643476164698,12.65,95.34,95.265,105.85]
[1643476164897,12.65,95.34,95.275,6.0]
[1643476165300,12.65,95.34,95.276,0.25]
[1643476165502,36.64182936,95.339,95.276,0.25]
[1643476165904,12.65,95.34,95.276,0.25]
[1643476166204,12.65,95.36,95.277,2.38186741]
[1643476166408,12.65,95.38,95.278,0.25]
[1643476166605,12.65,95.38,95.29,112.9]
[1643476166823,39.67258891,95.379,95.291,0.25]
[1643476167023,39.67258891,95.379,95.3,6.0]
[1643476167426,12.65,95.38,95.301,0.25]
[1643476167627,12.65,95.38,95.3,6.0]
[1643476167824,12.65,95.38,95.301,0.25]
[1643476168625,12.65,95.38,95.301,6.25]
[1643476169927,12.65,95.38,95.301,0.25]
[1643476170326,12.65,95.38,95.292,0.25]
[1643476170530,12.65,95.38,95.301,6.0]
[1643476170927,12.65,95.38,95.302,0.25]
[1643476172132,39.51959324,95.379,95.292,0.25]
[1643476173332,2.95669142,95.378,95.291,0.25]
[1643476173534,39.51959324,95.379,95.291,0.25]
[1643476173833,39.51959324,95.379,95.27,0.25]
[1643476174438,39.51959324,95.379,95.27,45.4116]
[1643476174638,6.0,95.369,95.28,6.0]
[1643476174838,12.65,95.36,95.281,0.25]
[1643476175040,39.51959324,95.379,95.281,0.25]
[1643476175041,39.51959324,95.379,95.282,105.6]
[1643476175340,39.51959324,95.379,95.283,0.25]
[1643476175541,12.65,95.38,95.292,6.0]
[1643476175744,12.15,95.38,95.292,6.0]
[1643476175942,12.15,95.38,95.293,6.25]
[1643476176142,12.15,95.38,95.294,6.0]
[1643476176344,12.15,95.38,95.293,0.25]
[1643476176345,12.15,95.38,95.303,6.0]
[1643476176542,12.15,95.38,95.293,0.25]
[1643476176543,43.4505352,95.379,95.294,6.0]
[1643476176942,2.95669142,95.378,95.295,0.25]
[1643476177343,6.0,95.368,95.295,0.25]
[1643476177544,12.65,95.36,95.295,0.25]
[1643476177744,37.1253734,95.359,95.281,112.15]
[1643476177946,37.1253734,95.359,95.282,0.25]
[1643476178347,12.65,95.36,95.282,0.25]
[1643476179346,12.65,95.36,95.272,105.85]
[1643476179546,12.65,95.36,95.282,6.0]
[1643476179946,12.65,95.36,95.283,0.25]
[1643476180952,12.65,95.36,95.272,0.25]
[1643476181549,12.65,95.36,95.279,6.0]
[1643476181751,12.65,95.36,95.28,0.25]
[1643476181948,28.397,95.36,95.272,0.25]
[1643476184750,0.25,95.359,95.272,0.25]
[1643476187055,3.20669142,95.359,95.272,0.25]
[1643476187256,15.748,95.35,95.272,0.25]
[1643476187454,12.65,95.34,95.272,0.25]
[1643476188156,12.65,95.34,95.276,6.0]
[1643476188458,2.95669142,95.339,95.244,27.03692055]
[1643476188655,33.19202305,95.329,95.244,27.03692055]
[1643476188858,12.65,95.32,95.244,24.1516]
[1643476189657,12.65,95.32,95.245,0.25]
[1643476189862,12.65,95.32,95.254,6.0]
[1643476190562,12.65,95.32,95.256,6.0]
[1643476190768,15.75,95.34,95.256,118.9]
[1643476191173,24.3584,95.359,95.256,118.9]
[1643476191371,24.3584,95.359,95.264,6.0]
[1643476191568,24.3584,95.359,95.266,6.0]
[1643476191770,40.12109766,95.358,95.267,0.25]
[1643476192369,0.25,95.357,95.267,0.25]
[1643476193083,0.25,95.357,95.266,6.0]
[1643476193290,0.25,95.357,95.267,0.25]
[1643476193993,40.12109766,95.358,95.267,0.25]
[1643476194592,6.0,95.348,95.267,0.25]
[1643476194791,6.0,95.348,95.256,112.9]
[1643476194792,12.65,95.34,95.257,0.25]
[1643476194994,41.41768206,95.339,95.257,0.25]
[1643476195391,0.25,95.338,95.257,0.25]
[1643476196694,41.41768206,95.339,95.257,0.25]
[1643476198397,3.20669142,95.338,95.257,0.25]
[1643476198596,3.20669142,95.338,95.232,2.88532055]
[1643476198796,15.752,95.33,95.229,2.88532055]
[1643476199001,22.6093,95.329,95.238,6.0]
[1643476199196,25.56599142,95.329,95.238,6.0]
[1643476199396,2.95669142,95.328,95.238,6.0]
[1643476199799,22.6093,95.329,95.238,6.0]
[1643476200005,46.18963706,95.309,95.216,2.88532055]
[1643476200204,12.65,95.3,95.204,2.88532055]
[1643476200406,170.83,95.3,95.204,2.88532055]
[1643476200606,2.95669142,95.299,95.191,112.9]
[1643476200805,22.7022,95.298,95.174,2.88532055]
[1643476201001,105.6,95.297,95.176,2.88532055]
[1643476201302,120.41407874,95.297,95.173,2.88532055]
[1643476201510,2.95669142,95.296,95.173,2.88532055]
[1643476201704,39.54445705,95.294,95.174,2.88532055]
[1643476201917,12.65,95.28,95.174,2.88532055]
[1643476202207,39.27201676,95.278,95.175,0.25]
[1643476202403,39.27201676,95.278,95.176,4.84045017]
[1643476202803,39.27201676,95.278,95.177,0.25]
[1643476203004,39.27201676,95.278,95.183,6.0]
[1643476203207,105.6,95.277,95.182,6.0]
[1643476203604,105.6,95.277,95.18,6.0]
[1643476203805,6.0,95.267,95.18,6.0]
[1643476204007,28.413,95.26,95.18,6.0]
[1643476204205,34.15209329,95.259,95.157,2.88532055]
[1643476204404,34.15209329,95.259,95.154,2.88532055]
[1643476204405,81.28309329,95.259,95.154,2.88532055]
[1643476204605,81.28309329,95.259,95.164,6.0]
[1643476204811,81.28309329,95.259,95.165,0.25]
[1643476205005,81.28309329,95.259,95.166,6.0]
[1643476205407,15.765,95.25,95.167,0.25]
[1643476205608,12.65,95.24,95.167,0.25]
[1643476205809,45.08250021,95.239,95.167,0.25]
[1643476206412,45.08250021,95.239,95.164,0.25]
[1643476206809,45.08250021,95.239,95.153,23.6683]
[1643476207411,45.08250021,95.239,95.138,2.88532055]
[1643476207611,45.08250021,95.239,95.137,2.88532055]
[1643476207612,105.85,95.238,95.137,2.88532055]
[1643476207814,0.25,95.238,95.129,2.88532055]
[1643476208813,0.25,95.238,95.149,0.25]
[1643476209014,15.768,95.23,95.149,0.25]
[1643476209317,12.65,95.22,95.124,48.6029]
[1643476209517,39.35541583,95.219,95.121,2.88532055]
[1643476209719,39.35541583,95.219,95.116,2.88532055]
[1643476209918,86.38771583,95.219,95.131,6.0]
[1643476210119,86.38771583,95.219,95.123,6.0]
[1643476210520,86.38771583,95.219,95.124,6.0]
[1643476210722,86.38771583,95.219,95.125,105.6]
[1643476210921,47.0323,95.219,95.125,110.37737679]
[1643476211123,47.0323,95.219,95.135,6.0]
[1643476211522,47.0323,95.219,95.136,6.0]
[1643476211840,47.0323,95.219,95.136,6.25]
[1643476212043,47.0323,95.219,95.145,6.0]
[1643476212242,47.0323,95.219,95.146,0.25]
[1643476212443,47.0323,95.219,95.146,6.25]
[1643476212642,47.0323,95.219,95.145,5.75]
[1643476212842,12.65,95.22,95.145,5.75]
[1643476213048,12.65,95.25,95.15,112.9]
[1643476213244,15.762,95.27,95.152,63.32]
[1643476213245,12.65,95.26,95.152,63.32]
[1643476213447,12.65,95.26,95.153,153.481]
[1643476213646,12.65,95.26,95.153,155.85604546]
[1643476213847,35.7811241,95.259,95.153,155.85604546]
[1643476214049,36.0311241,95.259,95.154,2.37504546]
[1643476214349,36.0311241,95.259,95.163,6.0]
[1643476214550,36.0311241,95.259,95.164,6.0]
[1643476214946,36.0311241,95.259,95.165,0.25]
[1643476215650,6.0,95.249,95.165,0.25]
[1643476215846,0.25,95.248,95.165,0.25]
[1643476216047,0.25,95.248,95.163,6.0]
[1643476216246,0.25,95.248,95.164,0.25]
[1643476216448,2.95669142,95.247,95.164,0.25]
[1643476216952,0.25,95.246,95.164,0.25]
[1643476217651,15.767,95.24,95.164,0.25]
[1643476217848,34.5259041,95.239,95.164,0.25]
[1643476218648,6.0,95.229,95.164,0.25]
[1643476218850,0.25,95.228,95.164,0.25]
[1643476219049,0.25,95.228,95.139,6.0]
[1643476219249,23.0262,95.228,95.139,6.0]
[1643476220549,23.0262,95.228,95.14,0.25]
[1643476225755,23.0262,95.228,95.141,4.7834657]
[1643476226157,32.92441291,95.217,95.151,6.0]
[1643476226358,0.25,95.216,95.152,0.25]
[1643476226558,105.85,95.216,95.147,6.0]
[1643476226760,108.80669142,95.216,95.147,6.0]
[1643476226960,2.95669142,95.215,95.139,6.0]
[1643476227160,2.95669142,95.215,95.141,6.0]
[1643476227365,0.25,95.214,95.142,0.25]
[1643476227565,12.65,95.21,95.139,6.0]
[1643476227763,0.25,95.209,95.131,6.0]
[1643476227964,23.1402,95.209,95.132,6.0]
[1643476228169,23.1402,95.209,95.131,6.0]
[1643476228770,23.1402,95.209,95.136,2.88532055]
[1643476229171,23.1402,95.209,95.146,6.0]
[1643476229371,23.1402,95.209,95.147,0.25]
[1643476229570,23.1402,95.209,95.147,5.051311]
[1643476229973,23.1402,95.209,95.148,4.801311]
[1643476230173,22.8902,95.209,95.148,4.801311]
[1643476230470,22.8902,95.209,95.149,0.25]
[1643476230690,28.422,95.21,95.15,4.801311]
[1643476230890,28.422,95.21,95.154,6.0]
[1643476231091,28.422,95.21,95.16,6.0]
[1643476231291,0.25,95.209,95.161,0.25]
[1643476231990,0.25,95.209,95.156,5.75342792]
[1643476232394,0.25,95.209,95.145,2.88532055]
[1643476233092,0.25,95.209,95.144,2.88532055]
[1643476233292,0.25,95.209,95.146,2.88532055]
[1643476233592,0.25,95.209,95.156,6.0]
[1643476233794,0.25,95.209,95.157,0.25]
[1643476235393,0.25,95.209,95.147,0.25]
[1643476235693,0.25,95.209,95.148,4.80115669]
[1643476235893,0.25,95.209,95.149,0.25]
[1643476236093,0.25,95.209,95.158,6.0]
[1643476236294,0.25,95.209,95.159,0.25]
[1643476237395,12.65,95.23,95.16,2.37524417]
[1643476237596,12.65,95.26,95.171,105.6]
[1643476237797,72.3073,95.309,95.186,2.88532055]
[1643476237995,72.3073,95.309,95.172,114.78648345]
[1643476237996,49.1648,95.309,95.199,2.88532055]
[1643476238198,49.1648,95.309,95.2,23.3776]
[1643476238398,12.65,95.31,95.201,68.37018345]
[1643476238596,12.65,95.31,95.211,6.0]
[1643476238798,12.65,95.31,95.212,105.85]
[1643476238997,12.65,95.31,95.222,6.0]
[1643476239396,12.65,95.31,95.223,0.25]
[1643476239798,0.25,95.309,95.223,2.62524417]
[1643476240097,0.25,95.309,95.224,8.37524417]
[1643476240596,0.25,95.309,95.224,6.0]
[1643476240801,6.0,95.3,95.224,6.0]
[1643476240997,6.0,95.3,95.213,24.6426]
[1643476241199,0.25,95.299,95.213,24.6426]
[1643476241496,0.25,95.299,95.214,0.25]
[1643476241698,0.25,95.299,95.223,6.0]
[1643476241898,0.25,95.299,95.224,0.25]
[1643476243397,0.25,95.309,95.224,0.25]
[1643476245001,28.404,95.31,95.224,0.25]
[1643476245205,12.65,95.31,95.224,105.85]
[1643476245404,12.65,95.31,95.225,2.37524417]
[1643476245607,12.65,95.31,95.235,6.0]
[1643476245805,12.65,95.31,95.236,0.25]
[1643476246405,0.25,95.309,95.236,0.25]
[1643476246607,12.65,95.31,95.236,0.25]
[1643476247007,12.65,95.31,95.235,0.25]
[1643476248307,0.25,95.309,95.235,0.25]
[1643476250508,12.65,95.31,95.235,0.25]
[1643476250711,28.401,95.33,95.236,2.37524417]
[1643476250913,28.401,95.33,95.237,105.6]
[1643476251111,6.0,95.32,95.247,6.0]
[1643476251313,6.0,95.32,95.248,0.25]
[1643476251510,36.33698244,95.319,95.248,6.25]
[1643476251711,36.33698244,95.319,95.248,8.62524417]
[1643476251910,36.33698244,95.319,95.238,24.9558]
[1643476252112,0.25,95.318,95.248,6.0]
[1643476253415,0.25,95.318,95.249,0.25]
[1643476255919,36.33698244,95.319,95.249,0.25]
[1643476256317,36.33698244,95.319,95.239,0.25]
[1643476257137,0.25,95.318,95.239,0.25]
[1643476258541,0.25,95.318,95.248,6.0]
[1643476258739,6.0,95.309,95.238,24.9558]
[1643476258940,0.25,95.318,95.248,6.0]
[1643476259139,0.25,95.308,95.248,6.0]
[1643476259338,0.25,95.318,95.248,6.0]
[1643476260140,0.25,95.318,95.249,0.25]
[1643476261343,0.25,95.318,95.238,24.9558]
[1643476261344,0.25,95.318,95.239,0.25]
[1643476261545,6.0,95.309,95.248,6.0]
[1643476261742,6.0,95.309,95.239,0.25]
[1643476262042,12.65,95.34,95.248,6.0]
[1643476262245,12.65,95.34,95.249,0.25]
[1643476262443,6.0,95.319,95.249,0.25]
[1643476262643,12.65,95.34,95.25,6.0]
[1643476262843,6.0,95.33,95.251,23.2578]
[1643476263044,6.0,95.329,95.22,2.37524417]
[1643476263344,0.25,95.328,95.201,2.88532055]
[1643476263548,37.47172968,95.319,95.17,2.88532055]
[1643476263749,12.65,95.31,95.164,2.88532055]
[1643476263946,48.0729,95.309,95.163,2.88532055]
[1643476264147,33.36288476,95.299,95.162,4.74852022]
[1643476264346,12.65,95.29,95.163,0.25]
[1643476264546,24.7905,95.289,95.172,6.0]
[1643476264747,39.82202509,95.279,95.173,24.4415]
[1643476264946,12.65,95.27,95.174,6.0]
[1643476265147,6.0,95.269,95.183,6.0]
[1643476265349,0.25,95.269,95.184,0.25]
[1643476265546,37.28641013,95.259,95.185,6.0]
[1643476265751,37.28641013,95.259,95.184,0.25]
[1643476265948,6.0,95.249,95.184,0.25]
[1643476266350,12.65,95.27,95.184,105.85]
[1643476266546,12.65,95.27,95.194,6.0]
[1643476266750,12.29255939,95.27,95.194,6.0]
[1643476266947,12.29255939,95.27,95.195,0.25]
[1643476267148,12.29255939,95.27,95.196,6.0]
[1643476267348,12.29255939,95.27,95.197,0.25]
[1643476268149,12.29255939,95.27,95.208,1.43688647]
[1643476268348,12.29255939,95.27,95.209,0.25]
[1643476268551,12.29255939,95.27,95.218,6.0]
[1643476268750,0.25,95.269,95.219,0.25]
[1643476269150,12.29255939,95.27,95.219,0.25]
[1643476269351,0.25,95.269,95.219,0.25]
[1643476269551,12.29255939,95.27,95.219,0.25]
[1643476269852,12.29255939,95.27,95.219,1.68688647]
[1643476270052,12.29255939,95.27,95.229,6.0]
[1643476270250,12.29255939,95.27,95.23,0.25]
[1643476271252,0.25,95.269,95.218,1.43688647]
[1643476271553,12.29255939,95.27,95.213,1.43688647]
[1643476271753,12.29255939,95.27,95.218,6.0]
[1643476271956,12.29255939,95.27,95.217,1.43688647]
[1643476272157,12.29255939,95.27,95.216,1.43688647]
[1643476272560,12.29255939,95.27,95.217,0.25]
[1643476272760,12.29255939,95.27,95.216,0.25]
[1643476273461,12.29255939,95.27,95.218,1.43688647]
[1643476273664,12.29255939,95.27,95.219,1.43688647]
[1643476273863,12.29255939,95.27,95.22,0.25]
[1643476274263,12.29255939,95.27,95.22,1.68688647]
[1643476275264,12.29255939,95.27,95.221,1.43688647]
[1643476275664,12.29255939,95.27,95.222,0.25]
[1643476275862,12.29255939,95.27,95.22,1.68688647]
[1643476276266,12.29255939,95.27,95.22,0.25]
[1643476276666,12.29255939,95.27,95.219,1.43688647]